Cogmind - Beta 16.1 *** ADVENTURER MODE // 2026.03.02 @ 21:41:52 Player: Gder Result: Destroyed by QZ-SGE(R) with Subdweller Machine Gun Performance ------------- Evolutions (0) 0 Regions Visited (2) 400 Robots Destroyed (22) 110 Value Destroyed (467) 467 Prototype IDs (4) 80 Alien Tech Used (0) 0 Bonus (0) 0 TOTAL SCORE: 1057 Bonus ------- None Cogmind --------- Core Integrity 0/250 Matter 231/300 Energy 100/100 System Corruption 0% Temperature Cool (0) Movement Treading (240) Ox1 Location -10/Subcaves Parts ------- > --- POWER (1) -------- (None) > --- PROPULSION (2) --- Light Treads Subdweller Monowheel > --- UTILITY (2) ------ Large Storage Unit > --- WEAPON (2) ------- Beam Cannon Light Cannon > --- INVENTORY (15) --- Light Ion Engine Light Treads Wheel Wheel Wheel Compact Wheel High-capacity Matter Pod (72) Seismic Detector Light Armor Plating Beam Cannon Particle Cannon Particle Cannon Subdweller Machine Gun Light Cannon Grenade Launcher Peak State ------------ > --- POWER ------------ Ion Engine > --- PROPULSION ------- Light Treads Wheel > --- UTILITY ---------- Large Storage Unit Light Armor Plating > --- WEAPON ----------- Assault Rifle Assault Rifle > --- INVENTORY -------- Light Ion Engine Light Treads Wheel Compact Wheel Compact Wheel Beam Cannon Light Assault Rifle Light Cannon Light Cannon Grenade Launcher [Rating: 8] Favorites ----------- Power Ion Engine Engine Ion Engine Propulsion Light Treads Treads Light Treads Wheel Wheel Utility Large Storage Unit Device Seismic Detector Storage Large Storage Unit Protection Light Armor Plating Weapon Assault Rifle Energy Cannon Beam Cannon Ballistic Gun Assault Rifle Ballistic Cannon Light Cannon Launcher Grenade Launcher Build | -11 -10 -10 ------- Run | Yrd Mat Sub Slots Evolved . | . . . Power . | . . . Propulsion . | . . . Utility . | . . . Weapon . | . . . Parts Attached 17 | 9 6 2 Power 1 | 1 . . Engine 1 | 1 . . Core . | . . . Reactor . | . . . Propulsion 5 | 4 . 1 Treads 1 | 1 . . Leg . | . . . Wheel 4 | 3 . 1 Hover . | . . . Flight . | . . . Utility 6 | 2 4 . Device 2 | 1 1 . Storage 3 | 1 2 . Processor . | . . . Hackware . | . . . Protection 1 | . 1 . Artifact . | . . . Weapon 5 | 2 2 1 Energy Gun . | . . . Energy Cannon 1 | . 1 . Ballistic Gun 2 | 2 . . Ballistic Cannon 1 | . . 1 Launcher 1 | . 1 . Special Weapon . | . . . Impact Weapon . | . . . Slashing Weapon . | . . . Piercing Weapon . | . . . Special Melee Weapon . | . . . Unidentified Prototypes . | . . . Parts Lost 5 | . 1 4 Power 1 | . . 1 Propulsion . | . . . Utility 2 | . 1 1 Weapon 2 | . . 2 Highest Loss Streak 4 | . 1 4 To Critical Strikes . | . . . Average Backups 10 | 3 10 14 Power . | . 1 1 Propulsion 3 | 3 4 4 Utility . | . . 3 Weapon 4 | . 4 6 Tool/Special . | . . . Unused Backups 16 | . 5 11 Power 1 | . . 1 Propulsion 4 | . 1 3 Utility 2 | . . 2 Weapon 9 | . 4 5 Tool/Special . | . . . Average Slot Usage (%) 93 | . 95 77 Engine 12 | . 14 4 Treads 14 | . 14 14 Wheel 14 | . 14 14 Device 2 | . 1 4 Storage 14 | . 14 14 Protection 7 | . 8 . Ballistic Gun 25 | . 28 10 Peak Build Rating 8 | 7 8 8 Average Rating 7 | 5 7 6 On Entrance 5 | . 7 8 Avg Prop Armor Cover (%) 10 | 11 9 13 Naked Turns . | . . . Heaviest Build 32 | 15 32 30 Greatest Support 32 | 32 10 20 Greatest Overweight (x) 3 | 1 3 2 Average Overweight (x) 2 | . 2 1 Largest Inventory Capacity 25 | 8 25 15 Average Capacity 12 | 7 12 15 Most Carried 15 | 6 15 15 Average Carried 10 | 3 10 14 Final Capacity 15 | 8 15 15 Final Carried 15 | 6 15 15 Class Distribution -------------------- 100% | Mutant Dominant Class ---------------- Mutant | -10/Materials Mutant | -10/Subcaves Resources | -11 -10 -10 ----------- Run | Yrd Mat Sub Matter Collected 775 | 338 424 13 Remotely . | . . . Salvage Created 822 | 162 604 56 Parts 52 | 9 35 8 Haulers Intercepted 2 | . 2 . Recyclers Shooed . | . . . Parts Field Recycled . | . . . Retrieved Matter . | . . . Parts Self-Destructed 5 | . . 5 Prevented . | . . . Parts Restored . | . . . Kills | -11 -10 -10 ------- Run | Yrd Mat Sub Combat Hostiles Destroyed 11 | . 8 3 Guns 9 | . 8 1 Cannons 1 | . . 1 AOE 1 | . . 1 Classes Destroyed 7 | 2 3 2 Worker 2 | . 2 . Tunneler 5 | 3 2 . Hauler 2 | . 2 . Recycler 2 | 1 1 . Swarmer 1 | . . 1 Grunt 8 | . 8 . Subdweller 2 | . . 2 Best Kill Streak 5 | 2 5 1 Combat Bots Only 3 | . 3 1 Max Kills in Single Turn 1 | 1 1 1 Gunslinging . | . . . Exploded 1 | . . 1 Melee . | . . . Uniques/NPCs Destroyed . | . . . Combat | -11 -10 -10 -------- Run | Yrd Mat Sub Hostile Shots Fired 119 | . 50 69 Missed 42 | . 18 24 Hits 77 | . 32 45 Projectile 77 | . 32 45 AOE 5 | . . 5 Critical Strikes 1 | . 1 . Damage Taken 810 | . 352 458 Core 253 | . 84 169 Absorbed by Shields . | . . . Ignored by Resistances 247 | . 105 142 Core Remaining (%) 100 | 100 . . Volleys Fired 66 | 8 48 10 Largest 2 | 2 2 2 Hottest 90 | 40 40 90 Shots Fired 128 | 16 95 17 Gun 120 | 16 94 10 Cannon 6 | . . 6 Launcher 2 | . 1 1 Special . | . . . Kinetic 123 | 16 94 13 Thermal 3 | . . 3 Explosive 2 | . 1 1 Electromagnetic . | . . . Robot Hit Streak 15 | 9 15 7 Robot Miss Streak 2 | 1 2 1 Penetration Max . | . . . Secondary Targets 1 | . . 1 Max Gunslinging Chain 1 | . . 1 Shots Hit Robots 94 | 12 68 14 Core Hits 40 | 5 30 5 Critical Kills . | . . . Critical Parts Destroyed 2 | . 2 . Critical Strikes 2 | . 2 . Destroy 2 | . 2 . Melee Attacks . | . . . Impact . | . . . Slashing . | . . . Piercing . | . . . Sneak Attacks . | . . . Combat Hostiles . | . . . Follow-up Attacks . | . . . Damage Inflicted 1270 | 151 903 216 Guns 1162 | 150 903 109 Cannons 82 | . . 82 Explosions 25 | . . 25 Melee . | . . . Ramming 1 | 1 . . Kinetic 1209 | 150 903 156 Thermal 35 | . . 35 Explosive 25 | . . 25 Electromagnetic . | . . . Impact . | . . . Slashing . | . . . Piercing . | . . . Highest Corruption . | . . . Average Corruption . | . . . Corruption Purged . | . . . Corruption Blocked . | . . . Overload Shots . | . . . Overflow Damage . | . . . Projectiles . | . . . Explosions . | . . . Melee . | . . . Knockbacks . | . . . Impact . | . . . Kinetic . | . . . Secondary . | . . . Self-Inflicted Damage . | . . . Shots . | . . . Rammed 1 | 1 . . Targets Rammed 1 | 1 . . Kicked . | . . . Crushed . | . . . Highest Temperature 25 | . 25 . Average Temperature 6 | . 6 . Received Heat Transfer 405 | . 273 132 Siege Activations . | . . . Martial Activations . | . . . Shielding Activations . | . . . Robots Disrupted . | . . . Combat Hostiles . | . . . Robots Corrupted . | . . . Combat Hostiles . | . . . Parts Fried . | . . . Impact Corruptions . | . . . Robots Melted . | . . . Combat Hostiles . | . . . Parts Melted . | . . . Heat Transferred 74 | . . 74 Parts Sabotaged . | . . . Parts Stolen . | . . . Parts Stripped . | . . . Power Chain Reactions . | . . . Alert | -11 -10 -10 ------- Run | Yrd Mat Sub Maximum Alert Level . | . . . Low Security (%) 100 | 100 100 . Level 1 . | . . . Level 2 . | . . . Level 3 . | . . . Level 4 . | . . . Level 5 . | . . . High Security . | . . . Max Security . | . . . Peak Influence 75 | 5 75 . Initial . | . . . Average 10 | 1 11 . Influence Increases 334 | 20 294 20 Destroy 0b10 Robot/C 180 | . 160 20 Destroy 0b10 Robot/NC 55 | 20 35 . Destroy Leader 44 | . 44 . Successful Hack 33 | . 33 . Destroy Structure 7 | . 7 . Lose Combat Pursuer 15 | . 15 . Influence Decreases 334 | 20 294 20 Time Decay 304 | 20 284 . Lost Part 30 | . 10 20 Squads Dispatched . | . . . Investigation . | . . . Extermination . | . . . Reinforcement . | . . . Assault . | . . . Garrison . | . . . Intercept . | . . . Searches Triggered . | . . . Construction Impeded . | . . . Haulers Reinforced . | . . . Active Scanning Responses . | . . . Cargo Convoy Interrupts . | . . . Stealth | -11 -10 -10 --------- Run | Yrd Mat Sub Distress Signals 1 | . 1 . Communications Jammed . | . . . Distress Signals . | . . . Times Spotted 24 | . 14 10 Peak Tracking Total 8 | . 5 8 Tactical Retreats 1 | . 1 . Traps | -11 -10 -10 ------- Run | Yrd Mat Sub Traps Triggered . | . . . Indirectly . | . . . Trap Hack Attempts . | . . . Triggered . | . . . Disarmed . | . . . Reprogrammed . | . . . Reused . | . . . Traps Extracted . | . . . Installed . | . . . Triggered . | . . . Machines | -11 -10 -10 ---------- Run | Yrd Mat Sub Machines Disabled . | . . . Max in Single Turn . | . . . Machines Repaired . | . . . Machines Dismantled . | . . . Machines Sabotaged . | . . . Overloaded Fab Kills . | . . . Hacking | -11 -10 -10 --------- Run | Yrd Mat Sub Machines Accessed 7 | . 7 . Terminals 7 | . 7 . Fabricators . | . . . Repair Stations . | . . . Recycling Units . | . . . Scanalyzers . | . . . Garrison Access . | . . . Total Hacks 25 | . 25 . Successful 15 | . 15 . Failed 10 | . 10 . Catastrophic . | . . . Database Lockouts . | . . . Manual 14 | . 14 . Terminals 25 | . 25 . Fabricators . | . . . Repair Stations . | . . . Recycling Units . | . . . Scanalyzers . | . . . Garrison Access . | . . . Terminal Hacks 8 | . 8 . Prototype ID Bank 2 | . 2 . Locate Traps 2 | . 2 . Patrol Status 1 | . 1 . Hauler Manifests 1 | . 1 . Registered Components 1 | . 1 . Registered Prototypes 1 | . 1 . Fabricator Hacks . | . . . Repair Station Hacks . | . . . Recycling Unit Hacks . | . . . Scanalyzer . | . . . Garrison Access Hacks . | . . . Unauthorized Hacks 7 | . 7 . Terminals 7 | . 7 . Botnet 2 | . 2 . Skim 5 | . 5 . Fabricators . | . . . Repair Stations . | . . . Recycling Units . | . . . Scanalyzers . | . . . Garrison Access . | . . . Data Cores Recovered . | . . . Used . | . . . Hacking Detections 6 | . 6 . Full Trace Events . | . . . Feedback Events . | . . . Feedback Blocked . | . . . Robot Schematics Acquired . | . . . Robots Built . | . . . Authchips . | . . . Time . | . . . Total Robot Build Rating . | . . . Part Schematics Acquired . | . . . Parts Built . | . . . Authchips . | . . . Time . | . . . Total Part Build Rating . | . . . Part Studies Acquired . | . . . Parts Repaired . | . . . Time . | . . . Parts Recycled . | . . . Recycled Matter . | . . . Retrieved Matter . | . . . Retrieved Components . | . . . Parts Scanalyzed . | . . . Part Schematics Acquired . | . . . Parts Damaged . | . . . Bothacking | -11 -10 -10 ------------ Run | Yrd Mat Sub Used RIF Installer . | . . . Robots Hacked . | . . . Non-combat . | . . . Combat . | . . . Robot Hacks Applied . | . . . Relay Couplers Released . | . . . Fabnet Peak Effective % . | . . . Robots Rewired . | . . . Allies Hacked . | . . . Hacks Repelled . | . . . Allies | -11 -10 -10 -------- Run | Yrd Mat Sub Total Allies . | . . . Largest Group . | . . . Highest-Rated Group . | . . . Highest-Rated Ally . | . . . Total Orders . | . . . Ally Attacks . | . . . Total Damage . | . . . Kills . | . . . Allies Corrupted . | . . . Allies Melted . | . . . Intel | -11 -10 -10 ------- Run | Yrd Mat Sub Active Infowar (turns) 198 | 5 147 46 Seismic 198 | 5 147 46 Robot Analysis Total . | . . . Derelict Logs Recovered . | . . . Drone Launches . | . . . Drone Recoveries . | . . . Exploration | -11 -10 -10 ------------- Run | Yrd Mat Sub Turns Passed 1485 | 100 1224 161 Spaces Moved 969 | 63 797 109 Core 8 | 8 . . Treads . | . . . Legs . | . . . Wheels 961 | 55 797 109 Hover . | . . . Flight . | . . . Fastest Speed 50 | 50 95 95 Average Speed 114 | 91 115 113 Slowest Speed 125 | 100 125 120 Overloaded Moves . | . . . Propulsion Burnouts . | . . . Robots Hopped . | . . . Potential Cave-ins . | . . . Cave-ins Triggered . | . . . Exploration Rate (%) 37 | 3 99 10 Regions Visited 2 Branch Regions 1 Pre-discovered Areas 1 | . 1 . Known Exits Taken 1 | . 1 . Unknown Exits Taken 1 | 1 . . Scrap Searched . | . . . Spaces Dug 5 | . 5 . Terrain Destroyed 14 | . 5 9 Melee . | . . . Projectile . | . . . AOE 14 | . 5 9 Terrain Rammed . | . . . Walls Destroyed . | . . . Machines Disabled . | . . . Actions | -11 -10 -10 --------- Run | Yrd Mat Sub Total 1218 | 85 1005 128 Wait 132 | . 128 4 Move 968 | 63 796 109 Hop . | . . . Pick Up 22 | 5 16 1 Fast Attach 10 | 7 3 . Attach 2 | . . 2 Detach 1 | . 1 . Swap 8 | 2 4 2 Drop 9 | . 9 . Fire 66 | 8 48 10 Melee . | . . . Ram . | . . . Kick . | . . . Crush . | . . . Escape Stasis . | . . . Rewire . | . . . Trap . | . . . Miscellaneous . | . . . Route ------- -11/Scrapyard -10/Materials (discovered 5 exits: [*Mat x3] / [*Min] / *Sub) -10/Subcaves (discovered 1 exit: [*Rec]) History --------- Turn | Location | Event 9 | -11/Scrapyard | Discovered new exit (range 16) 101 | -11/Scrapyard | Entered Materials 302 | -10/Materials | Build established: Mutant 515 | -10/Materials | Discovered new exit (range 8) 569 | -10/Materials | Discovered new exit (range 8) 669 | -10/Materials | Discovered new exit (range 3) 840 | -10/Materials | Learned Storage stockpile data 890 | -10/Materials | Discovered new exit (range 16) 913 | -10/Materials | Learned location of Mines (-9) 1073 | -10/Materials | Learned Storage trap positions 1125 | -10/Materials | Identified exit to Subcaves 1325 | -10/Materials | Entered Subcaves 1326 | -10/Subcaves | Approached by a straggling Scientist 1369 | -10/Subcaves | Discovered new exit (range 3) 1370 | -10/Subcaves | Core integrity fell below 50% 1371 | -10/Subcaves | Ambushed by Subdweller buried in earth 1378 | -10/Subcaves | Core integrity fell below 20% 1418 | -10/Subcaves | Lost 4 parts (1p1u2w) 1486 | -10/Subcaves | Destroyed by QZ-SGE(R) with Subdweller Machine Gun Last Messages --------------- 01374_ S-10 Pest destroyed. 01374_ Switching to secondary target: 70-LPE(R). 01375_ Subatomizers dissect the Tech Extrapolator. 01375_ S-10 Pest destroyed. 01377_ Ion Engine destroyed. 01377_ S-10 Pest destroyed. 01378_ Assault Rifle destroyed. 01384_ Flight Unit fries itself beyond repair. 01385_ Lgt. Assault Rifle fries itself beyond repair. 01387_ Assault Rifle destroyed. 01387_ S-10 Pest destroyed. 01387_ Autobeam Turret destroyed. 01387_ Machine disabled. 01388_ Lgt. Ion Engine fries itself beyond repair. 01399_ 70-LPE(R) destroyed. 01411_ Acquired 10 matter. 01423_ Acquired Sub. Machine Gun. 01426_ Acquired 2 matter. 01428_ Acquired 1 matter. 01483_ L9-V4P(R) destroyed. Map ----- +----------------------------------------------------+ | ??????????????????????????????# ##"" ??" ? | | ??????????????????????????????# #"" ??" #? | | ?????????????????????????????## " " """ ?#" #?? | | ????????????????????????????## & # "" #### " #?? | | ?????????????????????????#### &#""# ## #??? | | ?????????????????????????# " "" #??? | | ?????????????????????????# " #??? | | ?????????????????????????# ##?? | | ?????????????????????????# #?? | | ?????????????????????????# """" | | ?????????????????????????## "" & | | ??????????????????????????### < ## | | ??????????????????????????#" & ## ?? | | ??????????????????????????#" #??????? | | ??????????????????????????# ;# ##??????? | | ??????????????????????????# ## #???????? | | ??????????????????????????# ; ###?????? | | ??????????????????????????#" " #????? | | ??????????????????????????###; ;;"" #????? | | ?????????????????????????## ######## ??? | | ??????????????# ???????### #???????? "???? | | ??????????????# ?????# #?????????"" ???? | | ??????????????# ???## ##??????????????? | | ??????????????# ??## #??????????????? | | ???????????????# ## ##??##?????????? | | ???????????????# @ ### #?????????? | | ??????????????# ## #?????????? | | ????????????????????# ##???????? | | ??????????????????? &#### " "" | | ????????????????? &% R #????? | | ??????????????? ## [ #????? | | ????????????? ??## ## #???? | | ???????????? ##????# ## ## #???? | | ????????????? ???????# ##?# ??? | | ????????????? ???????? #???# ? | | ?????????????????????? ## #???? ## | | ????????????????????? ?# ????? ##?? | | ????????????????????? ?????##????## | | ????????????????????? ## ????????????? | | ?????????????????????## ? ## #??#????????????? | | ???????????????????????##????# ????????????????? | | ?????????????????????????????# ????????????????? | | ?????????????????????????????????????????????????? | | ?????????????????????????????????????????????????? | | ?????????????????????????????????????????????????? | | ?????????????????????????????????????????????????? | | ?????????????????????????????????????????????????? | | ?????????????????????????????????????????????????? | | ?????????????????????????????????????????????????? | | ?????????????????????????????????????????????????? | +----------------------------------------------------+ Best States ------------- Heat Dissipation 25 Energy Generation 10 Energy Capacity 250 Matter Stores 300 Matter Capacity 300 Sight Range 16 Terrain Scan Density 10 Armor Coverage 150 Resistance: KI 20 Resistance: TH 20 Resistance: EX 20 Resistance: EM 20 Resistance: I 20 Resistance: S 20 Resistance: P 20 Evasion (%) 41 Recoil Reduction 1 Offensive Hacking 10 Item Schematics ----------------- None Robot Schematics ------------------ None Fabricated ------------ Nothing Repaired ---------- Nothing Studied --------- None Alien Tech Used ----------------- None Achievements -------------- None Challenges ------------ None Game ------ Seed PlasmaHelicalBeam Manual? 0 Play Time 00:17:18 Cumulative 160.4 hours Start 2026.03.02 @ 19:12:28 End 2026.03.02 @ 21:41:52 Sessions 3 Manual Loads 0 Difficulty Adventurer Special Mode None Game No. 64 Rogue 0 Adventurer 60 Explorer 4 Win Type - Total 4 Types 4/0/0/0/0/0/0/0/0/0 Lore% 44 Gallery% 48 Achievement% 39 Wizard Run 0 Options --------- Layout 0 ASCII 0 Keyboard 1 Movement Numpad Keybinds 0 Fullscreen 2 Font 36/Smallcaps Map View 76x50 Zoom Use 0% Tactical HUD 1 Map Filters NONE Filters NONE Steam 1 RUN: 958364ec-2ef3-4f7b-bf40-ad31b6d3d18c